[Event "Summer Prague Open A 2020"]
[Site "Prague"]
[Date "2020.08.14"]
[Round "8.4"]
[White "Hrabusa, Matej"]
[Black "Svanda, Ondrej"]
[Result "1/2-1/2"]
[ECO "B40"]
[WhiteElo "2342"]
[BlackElo "2219"]
[Annotator "ChessBase"]
[PlyCount "85"]
[EventDate "2020.08.08"]
[EventCountry "CZE"]
[SourceTitle "playchess.com"]
[Source "ChessBase"]
[SourceQuality "1"]
[TimeControl "40/5400+30:1800+30"]

1. e4 {[%emt 0:00:00]} c5 {[%emt 0:00:00]} 2. Nf3 {[%emt 0:00:00]} e6 {[%emt 0:00:00]} 3. d3 {[%emt 0:00:11]} Nc6 {[%emt 0:00:00]} 4. g3 {[%emt 0:00:08]} Nf6 {[%emt 0:00:08]} 5. Bg2 {[%emt 0:00:08]} Be7 {[%emt 0:00:06]} 6. O-O {[%emt 0:00:31]} O-O {[%emt 0:00:08]} 7. c3 {[%emt 0:04:02]} d6 {[%emt 0:01:53]} 8. Nbd2 {[%emt 0:01:56]} Qc7 {[%emt 0:01:58]} 9. Re1 {[%emt 0:02:42]} Bd7 {[%emt 0:00:09]} 10. a3 {[%emt 0:02:02]} Ne5 {[%emt 0:00:14]} 11. Nxe5 {[%emt 0:01:11]} dxe5 {[%emt 0:00:02]} 12. a4 {[%emt 0:01:14]} Bc6 {[%emt 0:00:11]} 13. Nc4 {[%emt 0:00:49]} Nd7 {[%emt 0:00:13]} 14. b3 {[%emt 0:02:26]} Nb6 {[%emt 0:08:35]} 15. Ne3 {[%emt 0:03:12]} Rad8 {[%emt 0:01:07]} 16. a5 {[%emt 0:03:50]} Nc8 {[%emt 0:02:16]} 17. Nc4 {[%emt 0:10:56]} Bf6 {[%emt 0:16:50]} 18. Qe2 {[%emt 0:07:04]} Nd6 {[%emt 0:04:55]} 19. Ne3 {[%emt 0:04:50]} Nb5 {[%emt 0:04:15]} 20. Bb2 {[%emt 0:02:00]} g6 {[%emt 0:01:59]} 21. Nc4 {[%emt 0:05:27]} Nd6 {[%emt 0:08:13]} 22. Nxd6 {[%emt 0:04:50]} Rxd6 {[%emt 0:07:52]} 23. d4 {[%emt 0:00:42]} Rfd8 {[%emt 0:00:02]} 24. Ba3 {[%emt 0:04:00]} R6d7 {[%emt 0:02:39]} 25. dxc5 {[%emt 0:05:17]} Rd2 {[%emt 0:05:31]} 26. Qc4 {[%emt 0:01:55]} Qd7 {[%emt 0:03:18]} 27. Bc1 {[%emt 0:01:13]} Rc2 {[%emt 0:00:26]} 28. Be3 {[%emt 0:01:47]} Qd3 {[%emt 0:01:11]} 29. Qxd3 {[%emt 0:01:20]} Rxd3 {[%emt 0:00:01]} 30. a6 {[%emt 0:02:39]} Rdxc3 {[%emt 0:01:52]} 31. Reb1 {[%emt 0:01:55]} bxa6 {[%emt 0:08:59]} 32. Rxa6 {[%emt 0:00:07]} Bb5 {[%emt 0:00:00]} 33. Rxa7 {[%emt 0:00:29]} Kg7 {[%emt 0:00:13]} 34. b4 {[%emt 0:02:04]} h6 {[%emt 0:00:30]} 35. Rb7 {[%emt 0:03:00]} Bd3 {[%emt 0:00:02]} 36. Ra1 {[%emt 0:01:34]} Bg5 {[%emt 0:01:08]} 37. Bxg5 {[%emt 0:06:07]} hxg5 {[%emt 0:00:52]} 38. h3 {[%emt 0:03:15]} Rc1+ {[%emt 0:00:13]} 39. Rxc1 {[%emt 0:00:05]} Rxc1+ {[%emt 0:00:01]} 40. Kh2 {[%emt 0:00:09]} Rc2 {[%emt 0:00:02]} 41. Rd7 {[%emt 0:36:53]} Bb5 {[%emt 0:30:01]} 42. Rb7 {[%emt 0:01:24]} Bd3 {[%emt 0:00:01]} 43. Kg1 1/2-1/2

[Event "Summer Prague Open A 2020"]
[Site "Prague"]
[Date "2020.08.14"]
[Round "8.5"]
[White "Kasioumis, Vasilios"]
[Black "Pozdnjakov, Viatcheslav"]
[Result "0-1"]
[ECO "C11"]
[WhiteElo "2277"]
[BlackElo "2300"]
[Annotator "ChessBase"]
[PlyCount "90"]
[EventDate "2020.08.08"]
[EventCountry "CZE"]
[SourceTitle "playchess.com"]
[Source "ChessBase"]
[SourceQuality "1"]
[TimeControl "40/5400+30:1800+30"]

1. e4 {[%emt 0:00:00]} e6 {[%emt 0:00:00]} 2. d4 {[%emt 0:00:00]} d5 {[%emt 0:00:00]} 3. Nc3 {[%emt 0:00:00]} Nf6 {[%emt 0:00:25]} 4. e5 {[%emt 0:00:00]} Nfd7 {[%emt 0:00:10]} 5. f4 {[%emt 0:00:00]} c5 {[%emt 0:00:11]} 6. Nf3 {[%emt 0:00:00]} Nc6 {[%emt 0:00:10]} 7. Be3 {[%emt 0:00:00]} cxd4 {[%emt 0:01:27]} 8. Nxd4 {[%emt 0:00:00]} Qb6 {[%emt 0:00:26]} 9. Qd2 {[%emt 0:00:01]} Qxb2 {[%emt 0:00:22]} 10. Rb1 {[%emt 0:00:03]} Qa3 {[%emt 0:00:07]} 11. Bb5 {[%emt 0:00:05]} Nxd4 {[%emt 0:00:25]} 12. Bxd4 {[%emt 0:00:07]} a6 {[%emt 0:00:21]} 13. Bxd7+ {[%emt 0:00:06]} Bxd7 {[%emt 0:00:06]} 14. Rb3 {[%emt 0:00:42]} Qe7 {[%emt 0:00:12]} 15. Rxb7 {[%emt 0:00:06]} Rc8 {[%emt 0:00:59]} 16. O-O {[%emt 0:00:37]} Qa3 {[%emt 0:00:16]} 17. Rfb1 {[%emt 0:01:50]} Bc5 {[%emt 0:00:33]} 18. R7b3 {[%emt 0:19:06]} Qa5 {[%emt 0:10:30]} 19. Qe3 {[%emt 0:13:08]} O-O {[%emt 0:06:29]} 20. Ne2 {[%emt 0:06:44]} Ba4 {[%emt 0:07:14]} 21. R3b2 {[%emt 0:00:09]} Bxd4 {[%emt 0:05:42]} 22. Nxd4 {[%emt 0:00:11]} Rc3 {[%emt 0:01:46]} 23. Qf2 {[%emt 0:04:20]} Rc4 {[%emt 0:07:33]} 24. a3 {[%emt 0:10:46]} Qc3 {[%emt 0:08:10]} 25. Rb4 {[%emt 0:05:47]} Rxb4 {[%emt 0:00:46]} 26. axb4 {[%emt 0:07:22]} Rb8 {[%emt 0:02:13]} 27. f5 {[%emt 0:03:17]} Rxb4 {[%emt 0:02:11]} 28. Rxb4 {[%emt 0:01:03]} Qxb4 {[%emt 0:00:10]} 29. h3 {[%emt 0:04:27]} exf5 {[%emt 0:00:49]} 30. Nxf5 {[%emt 0:01:21]} Bd7 {[%emt 0:07:33]} 31. Nd6 {[%emt 0:02:44]} Be6 {[%emt 0:01:09]} 32. Kh2 {[%emt 0:00:52]} Qc3 {[%emt 0:03:10]} 33. Qe2 {[%emt 0:04:36]} a5 {[%emt 0:00:56]} 34. Kg1 {[%emt 0:01:53]} h6 {[%emt 0:00:39]} 35. Nb5 {[%emt 0:01:34]} Qc5+ {[%emt 0:01:31]} 36. Kh1 {[%emt 0:00:06]} d4 {[%emt 0:07:52]} 37. Nd6 {[%emt 0:00:28]} a4 {[%emt 0:03:23]} 38. Qe4 {[%emt 0:01:41]} Qd5 {[%emt 0:01:47]} 39. Qd3 {[%emt 0:01:58]} Qxe5 {[%emt 0:01:12]} 40. Nb5 {[%emt 0:00:05]} Qe3 {[%emt 0:04:55]} 41. Qxe3 {[%emt 0:33:06]} dxe3 {[%emt 0:30:05]} 42. Kg1 {[%emt 0:00:05]} f5 {[%emt 0:02:24]} 43. g3 {[%emt 0:00:42]} g5 {[%emt 0:00:51]} 44. Na3 {[%emt 0:00:20]} f4 {[%emt 0:00:41]} 45. h4 {[%emt 0:00:28]} f3 {[%emt 0:00:19]} 0-1

[Event "Summer Prague Open A 2020"]
[Site "Prague"]
[Date "2020.08.14"]
[Round "8.7"]
[White "Ludvik, Tomas"]
[Black "Roseneck, Jonas"]
[Result "0-1"]
[ECO "D39"]
[WhiteElo "2199"]
[BlackElo "2416"]
[Annotator "ChessBase"]
[PlyCount "58"]
[EventDate "2020.08.08"]
[EventCountry "CZE"]
[SourceTitle "playchess.com"]
[Source "ChessBase"]
[SourceQuality "1"]
[TimeControl "40/5400+30:1800+30"]

1. d4 {[%emt 0:00:00]} Nf6 {[%emt 0:00:00]} 2. c4 {[%emt 0:00:11]} e6 {[%emt 0:00:00]} 3. Nf3 {[%emt 0:00:21]} d5 {[%emt 0:00:00]} 4. Nc3 {[%emt 0:00:26]} Bb4 {[%emt 0:00:00]} 5. Bg5 {[%emt 0:00:31]} dxc4 {[%emt 0:00:00]} 6. e4 {[%emt 0:01:47]} b5 {[%emt 0:00:51]} 7. e5 {[%emt 0:22:33]} h6 {[%emt 0:00:15]} 8. Bd2 {[%emt 0:02:10]} Bxc3 {[%emt 0:02:25]} 9. bxc3 {[%emt 0:00:17]} Nd5 {[%emt 0:04:34]} 10. a4 {[%emt 0:01:25]} c6 {[%emt 0:02:09]} 11. Qb1 {[%emt 0:00:45]} a6 {[%emt 0:09:34]} 12. Be2 {[%emt 0:02:17]} Nd7 {[%emt 0:05:01]} 13. h4 {[%emt 0:07:32]} Rb8 {[%emt 0:22:41]} 14. axb5 {[%emt 0:03:49]} axb5 {[%emt 0:10:47]} 15. h5 {[%emt 0:11:35]} c5 {[%emt 0:06:30]} 16. dxc5 {[%emt 0:05:21]} Qc7 {[%emt 0:00:22]} 17. Qe4 {[%emt 0:02:53]} Ne7 {[%emt 0:05:37]} 18. Rh3 {[%emt 0:09:12]} Nxc5 {[%emt 0:06:55]} 19. Qg4 {[%emt 0:01:09]} Nb3 {[%emt 0:00:13]} 20. Rd1 {[%emt 0:06:15]} Nxd2 {[%emt 0:00:11]} 21. Rxd2 {[%emt 0:01:47]} O-O {[%emt 0:04:20]} 22. Qf4 {[%emt 0:09:49]} b4 {[%emt 0:06:17]} 23. Bxc4 {[%emt 0:03:38]} bxc3 {[%emt 0:00:48]} 24. Rd4 {[%emt 0:02:29]} Rb1+ {[%emt 0:00:43]} 25. Ke2 {[%emt 0:01:50]} c2 {[%emt 0:00:06]} 26. Rg3 {[%emt 0:01:02]} c1=Q {[%emt 0:00:52]} 27. Rxg7+ {[%emt 0:01:14]} Kxg7 {[%emt 0:01:41]} 28. Qf6+ {[%emt 0:00:33]} Kh7 {[%emt 0:00:09]} 29. Rg4 {[%emt 0:01:04]} Q7xc4+ {[%emt 0:00:19]} 0-1

[Event "Summer Prague Open A 2020"]
[Site "Prague"]
[Date "2020.08.14"]
[Round "8.8"]
[White "Simek, Petr"]
[Black "Kratochvil, Vit"]
[Result "0-1"]
[ECO "A36"]
[WhiteElo "2330"]
[BlackElo "2205"]
[Annotator "ChessBase"]
[PlyCount "74"]
[EventDate "2020.08.08"]
[EventCountry "CZE"]
[SourceTitle "playchess.com"]
[Source "ChessBase"]
[SourceQuality "1"]
[TimeControl "40/5400+30:1800+30"]

1. c4 {[%emt 0:00:00]} c5 {[%emt 0:00:00]} 2. g3 {[%emt 0:00:00]} g6 {[%emt 0:00:36]} 3. Bg2 {[%emt 0:00:00]} Bg7 {[%emt 0:00:06]} 4. Nc3 {[%emt 0:00:00]} Nc6 {[%emt 0:00:15]} 5. a3 {[%emt 0:00:00]} d6 {[%emt 0:01:23]} 6. Rb1 {[%emt 0:00:04]} a5 {[%emt 0:03:09]} 7. Nf3 {[%emt 0:11:54]} e5 {[%emt 0:04:02]} 8. d3 {[%emt 0:00:33]} Nge7 {[%emt 0:00:31]} 9. Bd2 {[%emt 0:04:41]} O-O {[%emt 0:01:03]} 10. O-O {[%emt 0:00:47]} h6 {[%emt 0:16:18]} 11. Ne1 {[%emt 0:02:12]} Be6 {[%emt 0:02:32]} 12. Nc2 {[%emt 0:29:16]} d5 {[%emt 0:12:22]} 13. cxd5 {[%emt 0:00:06]} Nxd5 {[%emt 0:00:06]} 14. Ne3 {[%emt 0:01:00]} Nb6 {[%emt 0:32:49]} 15. Ne4 {[%emt 0:13:48]} Qe7 {[%emt 0:02:51]} 16. Rc1 {[%emt 0:00:13]} Nd7 {[%emt 0:05:17]} 17. Nc3 {[%emt 0:05:54]} Nb6 {[%emt 0:04:37]} 18. Ne4 {[%emt 0:00:14]} Nd7 {[%emt 0:00:28]} 19. Nc4 {[%emt 0:03:44]} Ra6 {[%emt 0:02:22]} 20. Ned6 {[%emt 0:01:42]} Rb8 {[%emt 0:02:05]} 21. Nb5 {[%emt 0:01:08]} Nb6 {[%emt 0:02:16]} 22. b3 {[%emt 0:09:39]} Nd4 {[%emt 0:03:37]} 23. Nxd4 {[%emt 0:02:04]} exd4 {[%emt 0:01:08]} 24. Nxa5 {[%emt 0:01:41]} Nd5 {[%emt 0:01:13]} 25. a4 {[%emt 0:02:13]} Nc3 {[%emt 0:00:49]} 26. Bxc3 {[%emt 0:00:05]} dxc3 {[%emt 0:00:01]} 27. Nc4 {[%emt 0:00:15]} Bg4 {[%emt 0:00:55]} 28. Re1 {[%emt 0:01:03]} b5 {[%emt 0:00:34]} 29. axb5 {[%emt 0:01:00]} Rxb5 {[%emt 0:00:01]} 30. Qc2 {[%emt 0:03:32]} Qa7 {[%emt 0:00:55]} 31. Ne3 {[%emt 0:01:36]} Ra2 {[%emt 0:00:28]} 32. Qxa2 {[%emt 0:04:49]} Qxa2 {[%emt 0:00:02]} 33. Nxg4 {[%emt 0:00:05]} Qxb3 {[%emt 0:00:53]} 34. Ne3 {[%emt 0:00:02]} Rb8 {[%emt 0:00:39]} 35. Bd5 {[%emt 0:01:22]} Qa4 {[%emt 0:00:30]} 36. Rc2 {[%emt 0:00:36]} Rb2 {[%emt 0:00:30]} 37. Rec1 {[%emt 0:00:25]} Bd4 {[%emt 0:00:22]} 0-1

[Event "Summer Prague Open A 2020"]
[Site "Prague"]
[Date "2020.08.14"]
[Round "8.10"]
[White "Brejnik, Gustav"]
[Black "Houska, Jiri"]
[Result "0-1"]
[ECO "D71"]
[WhiteElo "2257"]
[BlackElo "2196"]
[Annotator "ChessBase"]
[PlyCount "92"]
[EventDate "2020.08.08"]
[EventCountry "CZE"]
[SourceTitle "playchess.com"]
[Source "ChessBase"]
[SourceQuality "1"]
[TimeControl "40/5400+30:1800+30"]

1. d4 Nf6 2. c4 g6 3. g3 Bg7 4. Bg2 d5 5. cxd5 Nxd5 6. Nf3 Nb6 7. O-O Nc6 8. e3 O-O 9. Nc3 Re8 10. Nh4 e5 11. d5 Nb4 12. Qb3 Nd3 13. Rd1 e4 14. Nxe4 Nxc1 15. Raxc1 Bg4 16. Rd2 g5 17. d6 c6 18. d7 Nxd7 19. Nc5 Nxc5 20. Qc2 Qe7 21. Nf5 Bxf5 22. Qxf5 Ne6 23. Be4 Nf8 24. f3 Rad8 25. Rdc2 Rd6 26. h4 gxh4 27. Rh2 Qe5 28. Qxe5 Rxe5 29. Rxh4 Rd2 30. b4 Ng6 31. Rh3 f5 32. Bc2 Rxe3 33. Bxf5 Rxf3 34. Bc8 Bf8 35. Rb1 Rfd3 36. Be6+ Kg7 37. Bb3 Bxb4 38. Rf1 Bc5+ 39. Kh1 Rf2 40. Rc1 Bd6 41. Rh5 Bxg3 42. Ra5 a6 43. Rg5 Bf4 44. Rf5 Rh2+ 45. Kg1 Bxc1 46. Kxh2 Rd7 0-1

[Event "Summer Prague Open A 2020"]
[Site "Prague"]
[Date "2020.08.14"]
[Round "8.11"]
[White "Wedda, Dries"]
[Black "Sprenar, Petr"]
[Result "0-1"]
[ECO "E06"]
[WhiteElo "2172"]
[BlackElo "2285"]
[Annotator "ChessBase"]
[PlyCount "76"]
[EventDate "2020.08.08"]
[EventCountry "CZE"]
[SourceTitle "playchess.com"]
[Source "ChessBase"]
[SourceQuality "1"]
[TimeControl "40/5400+30:1800+30"]

1. d4 Nf6 2. c4 e6 3. Nf3 d5 4. g3 Be7 5. Bg2 O-O 6. O-O dxc4 7. Qc2 c6 8. Qxc4 b5 9. Qb3 Bb7 10. Rd1 Nbd7 11. Nc3 Qb6 12. Be3 Nd5 13. Nxd5 cxd5 14. Bf4 Rfc8 15. Rdc1 a5 16. Rxc8+ Rxc8 17. Rc1 Rxc1+ 18. Bxc1 Qc6 19. Bd2 b4 20. Qd1 Ba6 21. Bf1 a4 22. b3 a3 23. Qc1 Qb7 24. Bf4 Nf6 25. Nd2 Ne8 26. Qc2 g5 27. Be3 Nd6 28. g4 Qc8 29. Qxc8+ Bxc8 30. Nf3 Ne4 31. Bd2 h5 32. h3 f5 33. Be1 fxg4 34. hxg4 hxg4 35. Ne5 Nc3 36. Bxc3 bxc3 37. Nd3 c2 38. e3 Bb4 0-1

[Event "Summer Prague Open A 2020"]
[Site "Prague"]
[Date "2020.08.14"]
[Round "8.13"]
[White "Soural, Jan"]
[Black "Tirelli, Mauro"]
[Result "1/2-1/2"]
[ECO "A04"]
[WhiteElo "2242"]
[BlackElo "2187"]
[Annotator "ChessBase"]
[PlyCount "73"]
[EventDate "2020.08.08"]
[EventCountry "CZE"]
[SourceTitle "playchess.com"]
[Source "ChessBase"]
[SourceQuality "1"]
[TimeControl "40/5400+30:1800+30"]

1. Nf3 {[%emt 0:00:00]} c5 {[%emt 0:00:00]} 2. c4 {[%emt 0:00:00]} Nc6 {[%emt 0:00:00]} 3. Nc3 {[%emt 0:00:00]} g6 {[%emt 0:00:00]} 4. e3 {[%emt 0:00:29]} Bg7 {[%emt 0:00:00]} 5. d4 {[%emt 0:00:05]} d6 {[%emt 0:01:30]} 6. d5 {[%emt 0:00:56]} Ne5 {[%emt 0:00:37]} 7. Nxe5 {[%emt 0:01:02]} Bxe5 {[%emt 0:00:05]} 8. Be2 {[%emt 0:02:11]} Bxc3+ {[%emt 0:05:58]} 9. bxc3 {[%emt 0:00:11]} Qa5 {[%emt 0:00:02]} 10. O-O {[%emt 0:08:45]} f5 {[%emt 0:01:25]} 11. e4 {[%emt 0:10:12]} Nf6 {[%emt 0:13:01]} 12. exf5 {[%emt 0:08:07]} Bxf5 {[%emt 0:00:05]} 13. Bd3 {[%emt 0:05:20]} Qxc3 {[%emt 0:09:40]} 14. Bxf5 {[%emt 0:00:30]} gxf5 {[%emt 0:05:52]} 15. Bg5 {[%emt 0:37:06]} Ne4 {[%emt 0:16:29]} 16. Qh5+ {[%emt 0:00:56]} Kd7 {[%emt 0:00:06]} 17. Qf7 {[%emt 0:02:15]} Nxg5 {[%emt 0:12:42]} 18. Qxf5+ {[%emt 0:00:07]} Kc7 {[%emt 0:00:50]} 19. Qxg5 {[%emt 0:00:14]} Rae8 {[%emt 0:01:03]} 20. Rae1 {[%emt 0:03:55]} Qf6 {[%emt 0:00:58]} 21. Qe3 {[%emt 0:07:18]} Rhg8 {[%emt 0:00:14]} 22. g3 {[%emt 0:06:55]} h5 {[%emt 0:02:58]} 23. Qe6 {[%emt 0:02:53]} h4 {[%emt 0:10:28]} 24. Re3 {[%emt 0:00:58]} Qxe6 {[%emt 0:03:59]} 25. Rxe6 {[%emt 0:00:02]} Rg4 {[%emt 0:00:11]} 26. Rc1 {[%emt 0:01:51]} Kd7 {[%emt 0:00:34]} 27. Kg2 {[%emt 0:00:11]} Rf8 {[%emt 0:03:10]} 28. Rce1 {[%emt 0:00:09]} Rf7 {[%emt 0:01:10]} 29. R1e4 {[%emt 0:00:09]} h3+ {[%emt 0:02:31]} 30. Kf1 {[%emt 0:00:03]} Rxe4 {[%emt 0:00:51]} 31. Rxe4 {[%emt 0:00:02]} Rf3 {[%emt 0:00:22]} 32. Re3 {[%emt 0:00:45]} Rf5 {[%emt 0:02:24]} 33. Rb3 {[%emt 0:01:11]} Kc7 {[%emt 0:01:28]} 34. Re3 {[%emt 0:00:12]} Kd7 {[%emt 0:02:39]} 35. Rb3 {[%emt 0:00:05]} Kc7 {[%emt 0:00:05]} 36. Re3 {[%emt 0:00:56]} Kd7 {[%emt 0:00:04]} 37. a4 1/2-1/2

[Event "Summer Prague Open A 2020"]
[Site "Prague"]
[Date "2020.08.14"]
[Round "8.14"]
[White "Csiki, Endre"]
[Black "Haack, Kevin"]
[Result "1-0"]
[ECO "B90"]
[WhiteElo "2266"]
[BlackElo "2180"]
[Annotator "ChessBase"]
[PlyCount "81"]
[EventDate "2020.08.08"]
[EventCountry "CZE"]
[SourceTitle "playchess.com"]
[Source "ChessBase"]
[SourceQuality "1"]
[TimeControl "40/5400+30:1800+30"]

1. e4 c5 2. Nf3 d6 3. d4 cxd4 4. Nxd4 Nf6 5. Nc3 a6 6. Bc4 e6 7. Bb3 Nbd7 8. Bg5 Nc5 9. O-O Be7 10. Qe1 O-O 11. Rd1 Qc7 12. f4 b5 13. a3 Nxb3 14. cxb3 Re8 15. Qg3 Bb7 16. f5 Nh5 17. Qh4 Bxg5 18. Qxg5 e5 19. Ndxb5 axb5 20. Qxh5 f6 21. Rf3 b4 22. axb4 Qb6+ 23. Kh1 Qxb4 24. Rh3 h6 25. Rg3 Kf8 26. Rxg7 Kxg7 27. Qg6+ Kf8 28. Qxf6+ Kg8 29. Qg6+ Kf8 30. f6 Re7 31. fxe7+ Kxe7 32. Qg7+ Kd8 33. Rf1 Bc6 34. Rf8+ Be8 35. Rxe8+ Kxe8 36. Qg8+ Kd7 37. Qxa8 Qxb3 38. Qa4+ Qxa4 39. Nxa4 Kc6 40. Nc3 Kc5 41. g4 1-0

[Event "Summer Prague Open A 2020"]
[Site "Prague"]
[Date "2020.08.14"]
[Round "8.15"]
[White "Toman, Ondrej"]
[Black "Schnider, Gert"]
[Result "1/2-1/2"]
[ECO "A45"]
[WhiteElo "2206"]
[BlackElo "2423"]
[Annotator "ChessBase"]
[PlyCount "90"]
[EventDate "2020.08.08"]
[EventCountry "CZE"]
[SourceTitle "playchess.com"]
[Source "ChessBase"]
[SourceQuality "1"]
[TimeControl "40/5400+30:1800+30"]

1. d4 {[%emt 0:00:00]} Nf6 {[%emt 0:00:00]} 2. Bf4 {[%emt 0:00:00]} g6 {[%emt 0:00:00]} 3. Nc3 {[%emt 0:00:00]} d5 {[%emt 0:00:00]} 4. e3 {[%emt 0:00:00]} Bg7 {[%emt 0:00:00]} 5. h4 {[%emt 0:00:13]} h5 {[%emt 0:00:00]} 6. Nf3 {[%emt 0:01:11]} O-O {[%emt 0:00:01]} 7. Be2 {[%emt 0:01:59]} c5 {[%emt 0:00:05]} 8. Qd2 {[%emt 0:00:31]} Qa5 {[%emt 0:01:55]} 9. O-O {[%emt 0:04:31]} Nc6 {[%emt 0:06:08]} 10. Rfd1 {[%emt 0:09:48]} cxd4 {[%emt 0:01:16]} 11. exd4 {[%emt 0:00:35]} Bf5 {[%emt 0:01:12]} 12. Ne5 {[%emt 0:05:54]} Rac8 {[%emt 0:02:42]} 13. a3 {[%emt 0:05:04]} Qd8 {[%emt 0:03:34]} 14. Nxc6 {[%emt 0:07:30]} Rxc6 {[%emt 0:00:14]} 15. Be5 {[%emt 0:03:42]} Kh7 {[%emt 0:04:06]} 16. Bd3 {[%emt 0:05:06]} Bxd3 {[%emt 0:03:54]} 17. Qxd3 {[%emt 0:00:03]} Qd7 {[%emt 0:00:27]} 18. Qf3 {[%emt 0:04:25]} Rd8 {[%emt 0:05:24]} 19. Rd3 {[%emt 0:04:56]} Kg8 {[%emt 0:00:30]} 20. Re1 {[%emt 0:02:18]} Rb6 {[%emt 0:04:58]} 21. Rb1 {[%emt 0:07:31]} Bh6 {[%emt 0:03:51]} 22. Bf4 {[%emt 0:05:07]} Bf8 {[%emt 0:00:13]} 23. Qe2 {[%emt 0:02:06]} Rc8 {[%emt 0:00:45]} 24. f3 {[%emt 0:04:20]} Ne8 {[%emt 0:03:07]} 25. Nd1 {[%emt 0:01:55]} Nc7 {[%emt 0:04:08]} 26. Bxc7 {[%emt 0:03:26]} Rxc7 {[%emt 0:00:21]} 27. c3 {[%emt 0:00:49]} Bh6 {[%emt 0:04:01]} 28. Nf2 {[%emt 0:01:47]} Bf4 {[%emt 0:05:16]} 29. Nh1 {[%emt 0:01:49]} Qf5 {[%emt 0:00:27]} 30. Rbd1 {[%emt 0:02:19]} Re6 {[%emt 0:02:42]} 31. Qf2 {[%emt 0:00:46]} Qf6 {[%emt 0:01:53]} 32. g3 {[%emt 0:01:21]} Bd6 {[%emt 0:01:06]} 33. f4 {[%emt 0:01:26]} Qf5 {[%emt 0:00:31]} 34. Qf3 {[%emt 0:01:17]} Rc6 {[%emt 0:01:19]} 35. Nf2 {[%emt 0:01:11]} Bc7 {[%emt 0:05:10]} 36. R3d2 {[%emt 0:03:34]} Bb6 {[%emt 0:00:06]} 37. Kf1 {[%emt 0:01:01]} Rc8 {[%emt 0:01:29]} 38. Re2 {[%emt 0:02:36]} Rxe2 {[%emt 0:00:22]} 39. Qxe2 {[%emt 0:00:03]} e6 {[%emt 0:00:18]} 40. Kg2 {[%emt 0:01:34]} Qf6 {[%emt 0:01:00]} 41. Qb5 {[%emt 0:31:15]} Qd8 {[%emt 0:30:39]} 42. Re1 {[%emt 0:01:17]} Kg7 {[%emt 0:04:17]} 43. Nd3 {[%emt 0:01:28]} Qe8 {[%emt 0:04:26]} 44. Qb3 {[%emt 0:01:12]} Qd8 {[%emt 0:01:05]} 45. Re2 {[%emt 0:00:54]} Rc7 {[%emt 0:00:21]} 1/2-1/2

[Event "Summer Prague Open A 2020"]
[Site "Prague"]
[Date "2020.08.14"]
[Round "8.16"]
[White "Schernthaner, David"]
[Black "Miedema, David"]
[Result "0-1"]
[ECO "C09"]
[WhiteElo "2220"]
[BlackElo "2382"]
[Annotator "ChessBase"]
[PlyCount "70"]
[EventDate "2020.08.08"]
[EventCountry "CZE"]
[SourceTitle "playchess.com"]
[Source "ChessBase"]
[SourceQuality "1"]
[TimeControl "40/5400+30:1800+30"]

1. e4 {[%emt 0:00:00]} e6 {[%emt 0:00:00]} 2. d4 {[%emt 0:00:00]} d5 {[%emt 0:00:00]} 3. Nd2 {[%emt 0:00:00]} c5 {[%emt 0:00:00]} 4. exd5 {[%emt 0:00:00]} exd5 {[%emt 0:00:00]} 5. Ngf3 {[%emt 0:00:00]} Nc6 {[%emt 0:00:00]} 6. Bb5 {[%emt 0:00:03]} Qe7+ {[%emt 0:00:17]} 7. Qe2 {[%emt 0:03:21]} Qxe2+ {[%emt 0:00:08]} 8. Kxe2 {[%emt 0:05:43]} a6 {[%emt 0:00:05]} 9. Bxc6+ {[%emt 0:00:53]} bxc6 {[%emt 0:00:04]} 10. dxc5 {[%emt 0:01:31]} Bxc5 {[%emt 0:00:05]} 11. Nb3 {[%emt 0:00:10]} Bd6 {[%emt 0:00:05]} 12. Re1 {[%emt 0:02:49]} Ne7 {[%emt 0:05:36]} 13. Be3 {[%emt 0:00:59]} f6 {[%emt 0:02:14]} 14. Bc5 {[%emt 0:02:59]} Kd7 {[%emt 0:00:36]} 15. Kd2 {[%emt 0:10:50]} a5 {[%emt 0:00:22]} 16. c3 {[%emt 0:07:04]} a4 {[%emt 0:00:45]} 17. Bxd6 {[%emt 0:00:05]} Kxd6 {[%emt 0:00:04]} 18. Nc5 {[%emt 0:02:34]} Ng6 {[%emt 0:03:47]} 19. Nd3 {[%emt 0:00:38]} Rb8 {[%emt 0:01:21]} 20. Rab1 {[%emt 0:09:12]} Bg4 {[%emt 0:08:15]} 21. Nd4 {[%emt 0:07:05]} Ne5 {[%emt 0:00:22]} 22. Nxe5 {[%emt 0:07:55]} fxe5 {[%emt 0:00:57]} 23. f3 {[%emt 0:00:52]} exd4 {[%emt 0:01:14]} 24. fxg4 {[%emt 0:00:17]} dxc3+ {[%emt 0:00:03]} 25. bxc3 {[%emt 0:00:15]} Rhf8 {[%emt 0:00:26]} 26. Kd3 {[%emt 0:15:11]} Rxb1 {[%emt 0:06:01]} 27. Rxb1 {[%emt 0:00:05]} Rf2 {[%emt 0:00:04]} 28. Rb7 {[%emt 0:00:04]} Rxg2 {[%emt 0:00:06]} 29. Rxg7 {[%emt 0:00:04]} Rxh2 {[%emt 0:00:04]} 30. Ra7 {[%emt 0:03:18]} Rxa2 {[%emt 0:00:19]} 31. Rxh7 {[%emt 0:00:05]} Rg2 {[%emt 0:00:05]} 32. Rg7 {[%emt 0:11:12]} Kc5 {[%emt 0:01:47]} 33. g5 {[%emt 0:00:16]} Rg3+ {[%emt 0:00:07]} 34. Kd2 {[%emt 0:00:25]} Kc4 {[%emt 0:00:06]} 35. g6 {[%emt 0:00:09]} Rg2+ {[%emt 0:00:09]} 0-1